[Event "85th ARM-ch HL 2025"]
[Site "Yerevan"]
[Date "2025.01.21"]
[Round "8.3"]
[White "Agasarov, Benik"]
[Black "Hovhannisyan, Robert"]
[Result "1/2-1/2"]
[Annotator "RC"]
[ECO "C67"]
[WhiteElo "2387"]
[BlackElo "2626"]
[PlyCount "39"]
[EventDate "2025.01.13"]
[EventType "tourn"]
[EventCountry "ARM"]
[SourceTitle "playchess.com"]
[Source "ChessBase"]
[SourceQuality "1"]
[TimeControl "40/5400+30:1800+30"]

1. e4 {[%emt 0:00:03]} e5 {[%emt 0:00:10]} 2. Nf3 {[%emt 0:00:05]} Nc6 {[%emt 0:00:04]} 3. Bb5 {[%emt 0:00:05]} Nf6 {[%emt 0:00:19]} 4. O-O {[%emt 0:00:06]} Nxe4 {[%emt 0:00:07]} 5. Re1 {[%emt 0:00:06]} Nd6 {[%emt 0:00:11]} 6. Nxe5 {[%emt 0:00:06]} Be7 {[%emt 0:00:11]} 7. Bf1 {[%emt 0:00:07]} Nxe5 {[%emt 0:00:42]} 8. Rxe5 {[%emt 0:00:06]} O-O {[%emt 0:00:07]} 9. d4 {[%emt 0:00:29]} Bf6 {[%emt 0:00:08]} 10. Re1 {[%emt 0:00:06]} Nf5 {[%emt 0:00:23]} 11. c3 {[%emt 0:00:18]} d5 {[%emt 0:00:43]} 12. Nd2 {[%emt 0:00:19]} Nd6 {[%emt 0:04:58]} 13. Nf3 {[%emt 0:00:12]} c6 {[%emt 0:01:44]} 14. h3 {[%emt 0:00:35]} Bf5 {[%emt 0:03:56]} 15. Bf4 {[%emt 0:00:35]} a5 {[%emt 0:02:26]} 16. a4 {[%emt 0:00:13]} Be4 {[%emt 0:03:26]} 17. Nd2 {[%emt 0:00:22]} Bg6 {[%emt 0:01:40]} 18. Nf3 {[%emt 0:02:40]} Be4 {[%emt 0:01:11]} 19. Nd2 {[%emt 0:00:08]} Bg6 {[%emt 0:02:26]} 20. Nf3 {[%emt 0:00:08]} 1/2-1/2

[Event "85th ARM-ch HL 2025"]
[Site "Yerevan"]
[Date "2025.01.21"]
[Round "8.4"]
[White "Gharibyan, Mamikon"]
[Black "Sargsyan, Sargis Vach."]
[Result "1/2-1/2"]
[Annotator "TA"]
[ECO "C80"]
[WhiteElo "2486"]
[BlackElo "2370"]
[PlyCount "87"]
[EventDate "2025.01.13"]
[EventType "tourn"]
[EventCountry "ARM"]
[SourceTitle "playchess.com"]
[Source "ChessBase"]
[SourceQuality "1"]
[TimeControl "40/5400+30:1800+30"]

{[%evp 20,87,20,21,17,22,30,-7,-15,-10,0,-19,22,27,22,22,23,37,44,16,62,15,17,16,39,41,39,37,28,38,49,36,40,34,32,25,31,48,48,10,0,0,0,0,0,0,0,0,0,0,-12,-7,0,0,0,-7,-4,-6,-8,-7,-4,-6,0,0,0,-11,-13,-46,-7,-6]} 1. e4 {[%emt 0:04:22]} e5 {[%emt 0:00:17]} 2. Nf3 {[%emt 0:00:04]} Nc6 {[%emt 0:00:15]} 3. Bb5 {[%emt 0:00:04]} a6 {[%emt 0:01:49]} 4. Ba4 {[%emt 0:00:14]} Nf6 {[%emt 0:00:17][%cal Bg8f6,Bf6e4,Be4c5,Bc5e6][%mdl 32]} 5. O-O {[%emt 0:00:05]} Nxe4 {[%emt 0:01:41]} 6. Re1 {[%emt 0:04:15]} Nc5 {[%emt 0:00:08]} 7. Bxc6 {[%emt 0:00:04]} dxc6 {[%emt 0:00:06]} 8. Nxe5 {[%emt 0:00:10]} Be7 {[%emt 0:00:07]} 9. d4 {[%emt 0:00:04]} Ne6 {[%emt 0:00:12]} 10. Be3 {[%emt 0:00:07]} O-O {[%emt 0:00:07]} 11. c4 {[%emt 0:00:03]} f6 {[%emt 0:00:06]} 12. Nf3 {[%emt 0:00:17]} Ng5 {[%emt 0:00:11]} 13. Bxg5 {[%emt 0:12:02]} fxg5 {[%emt 0:00:12]} 14. c5 {[%emt 0:04:32]} Bf6 {[%emt 0:05:31]} 15. Ne5 {[%emt 0:11:58] Prevents Bg4.} Bxe5 {[%emt 0:03:23]} 16. Rxe5 {[%emt 0:01:45]} Qf6 {[%emt 0:08:01]} 17. Qb3+ {[%emt 0:05:09]} Kh8 {[%emt 0:00:23]} 18. Qe3 {[%emt 0:00:07] Active counter play!} Bf5 {[%emt 0:00:46]} 19. Nc3 {[%emt 0:05:18]} Rad8 {[%emt 0:02:45]} (19... h6 $11) 20. Re1 {[%emt 0:05:31]} (20. Rf1 $14 {deserves consideration.}) 20... h6 $11 {[%emt 0:01:08]} 21. h3 {[%emt 0:07:54]} g4 {[%emt 0:05:05]} 22. hxg4 {[%emt 0:02:14]} Bxg4 {[%emt 0:00:06]} 23. d5 {[%emt 0:04:37]} Bf5 {[%emt 0:12:14]} 24. Qg3 {[%emt 0:10:08]} Rf7 {[%emt 0:17:05]} 25. R1e3 {[%emt 0:05:30]} Rdf8 {[%emt 0:10:21]} 26. Rf3 {[%emt 0:02:26]} Qd8 {[%emt 0:00:23] [#]} 27. d6 $1 {[%emt 0:03:53]} cxd6 {[%emt 0:00:53]} 28. cxd6 {[%emt 0:00:03]} Kh7 {[%emt 0:08:38][%cal Oa6a5]} (28... Qxd6 29. Rfxf5 Rf6 30. Rxf6 Qxf6 31. Rc5 $18) 29. Re1 {[%emt 0:05:44]} Rd7 {[%emt 0:10:47]} 30. Qe5 {[%emt 0:01:15]} Bc2 {[%emt 0:01:40]} 31. Rxf8 {[%emt 0:04:12]} Qxf8 {[%emt 0:00:04]} 32. Ne4 {[%emt 0:01:50]} Bxe4 {[%emt 0:03:58]} 33. Qxe4+ {[%emt 0:00:01][%mdl 4096] Endgame KQR-KQR} Kh8 {[%emt 0:02:03]} 34. Qb4 {[%emt 0:01:01] Re7 would now be deadly.} Qxd6 {[%emt 0:00:28]} 35. Re8+ {[%emt 0:00:07]} Kh7 {[%emt 0:00:06]} 36. Qe4+ $1 {[%emt 0:00:06]} g6 $1 {[%emt 0:00:03]} 37. Re6 {[%emt 0:01:16]} Qd1+ {[%emt 0:00:05]} 38. Kh2 {[%emt 0:00:12]} Qh5+ {[%emt 0:00:18]} 39. Kg3 {[%emt 0:00:10]} Qg5+ {[%emt 0:00:21]} 40. Kh3 {[%emt 0:00:00]} Qh5+ {[%emt 0:00:00]} 41. Kg3 {[%emt 0:01:16]} Qg5+ {[%emt 0:03:31]} 42. Kh3 {[%emt 0:01:15]} Rf7 {[%emt 0:35:56][%cal Oh6h5]} 43. f3 {[%emt 0:30:39]} Rg7 {[%emt 0:00:30]} 44. f4 {[%emt 0:00:30]} 1/2-1/2

[Event "85th ARM-ch HL 2025"]
[Site "Yerevan"]
[Date "2025.01.21"]
[Round "8.5"]
[White "Petrosyan, Manuel"]
[Black "Andriasian, Zaven"]
[Result "1/2-1/2"]
[Annotator "TA"]
[ECO "B54"]
[WhiteElo "2590"]
[BlackElo "2554"]
[PlyCount "84"]
[EventDate "2025.01.13"]
[EventType "tourn"]
[EventCountry "ARM"]
[SourceTitle "playchess.com"]
[Source "ChessBase"]
[SourceQuality "1"]
[TimeControl "40/5400+30:1800+30"]

{[%evp 10,84,25,15,30,8,27,25,23,17,19,20,30,17,31,6,14,11,6,6,11,0,0,0,0,0,0,14,26,35,20,16,59,20,40,0,0,0,0,0,0,0,5,0,0,0,0,0,0,0,0,0,0,0,10,29,20,15,27,33,18,0,0,0,0,0,0,0,0,0,0,0,0,0,0,0,6]} 1. e4 {[%emt 0:02:40]} c5 {[%emt 0:00:10]} 2. Nf3 {[%emt 0:00:06]} d6 {[%emt 0:00:09]} 3. Bb5+ {[%emt 0:00:20]} Bd7 {[%emt 0:00:11]} 4. c4 {[%emt 0:01:56]} Nc6 {[%emt 0:00:10]} 5. d4 {[%emt 0:00:20]} cxd4 {[%emt 0:00:10]} 6. Nxd4 {[%emt 0:00:04]} g6 {[%emt 0:00:26]} 7. Nc3 {[%emt 0:00:40][%cal Oc4c5]} Bg7 {[%emt 0:00:36]} 8. Be3 {[%emt 0:00:34]} Nf6 {[%emt 0:00:16]} 9. h3 {[%emt 0:00:22] Against Ng4} O-O {[%emt 0:00:41]} 10. O-O {[%emt 0:02:16]} a6 {[%emt 0:05:33]} 11. Bxc6 {[%emt 0:01:17]} bxc6 {[%emt 0:00:10]} 12. c5 {[%emt 0:00:15]} Qb8 {[%emt 0:03:39]} 13. cxd6 {[%emt 0:14:02]} exd6 {[%emt 0:00:58]} 14. Qc2 {[%emt 0:00:35]} Re8 {[%emt 0:06:13]} 15. Rad1 {[%emt 0:01:46]} c5 {[%emt 0:03:12]} 16. Nb3 {[%emt 0:04:52]} Bc6 {[%emt 0:12:21]} 17. f3 {[%emt 0:02:30]} a5 {[%emt 0:09:29]} 18. Bf4 {[%emt 0:13:22]} Re6 {[%emt 0:00:48]} 19. Kh1 {[%emt 0:08:53]} (19. Nxc5 $2 Qb6 20. Be3 (20. Bxd6 $2 Rxd6 21. Qf2 Bf8 $19) 20... dxc5 $19) 19... Nd7 {[%emt 0:07:54]} 20. Nd2 {[%emt 0:03:19]} Ne5 {[%emt 0:01:49] Prevents Nc4} 21. b3 {[%emt 0:02:31]} Qb4 {[%emt 0:06:56]} 22. Nd5 {[%emt 0:05:43]} Bxd5 {[%emt 0:03:09]} 23. exd5 {[%emt 0:01:55]} Ree8 {[%emt 0:00:09]} 24. Nc4 {[%emt 0:09:53]} Nxc4 {[%emt 0:07:22]} 25. bxc4 {[%emt 0:00:16]} Qb6 {[%emt 0:00:25]} 26. Rfe1 {[%emt 0:03:40]} h5 {[%emt 0:05:58]} 27. Qa4 {[%emt 0:12:39]} Rxe1+ {[%emt 0:14:18]} 28. Rxe1 {[%emt 0:00:01]} Bc3 {[%emt 0:00:17]} 29. Rc1 {[%emt 0:00:06]} Bd4 {[%emt 0:01:23]} 30. Qb5 {[%emt 0:00:38]} (30. Qc6 $6 Qxc6 31. dxc6 Rc8 $16) 30... Qc7 {[%emt 0:01:18]} 31. Rb1 {[%emt 0:03:57]} ({Much less strong is} 31. Qc6 $6 Qxc6 32. dxc6 Rc8 $16) 31... a4 {[%emt 0:03:09]} 32. Qc6 {[%emt 0:02:52]} Qxc6 {[%emt 0:01:50]} 33. dxc6 $11 {[%emt 0:00:01][%cal Oc6c7][%mdl 4096] Endgame Strongly threatening c7!. KRB-KRB} Rc8 {[%emt 0:00:08]} 34. Rb6 {[%emt 0:00:01]} ({Of course not} 34. Bxd6 Rxc6 35. Rb8+ Kg7 36. Bf8+ Kf6 $17) 34... Be5 {[%emt 0:00:11]} 35. Bd2 {[%emt 0:00:02]} Kf8 {[%emt 0:01:30]} 36. f4 {[%emt 0:03:12]} Bd4 {[%emt 0:00:24]} 37. Ba5 {[%emt 0:00:32]} Ke7 {[%emt 0:00:45]} 38. g4 {[%emt 0:00:47]} hxg4 {[%emt 0:01:35]} 39. hxg4 {[%emt 0:00:00]} Ke6 {[%emt 0:00:27]} 40. Kg2 {[%emt 0:00:00]} d5 {[%emt 0:00:00]} 41. c7+ {[%emt 0:05:34]} Kd7 {[%emt 0:02:35]} 42. cxd5 {[%emt 0:00:45]} (42. Rb8 dxc4 43. Kf3 c3) 42... Rxc7 {[%emt 0:01:23]} 1/2-1/2